[Event "*** Titled Tuesday Blitz"]
[Site "Chess.com"]
[Date "2020.10.20"]
[Round "1"]
[White "BocharovD"]
[Black "Slovak_fighter2000"]
[Result "1-0"]
[WhiteElo "2800"]
[BlackElo "2397"]
[TimeControl "180+1"]
[EndTime "10:07:23 PDT"]
[Termination "BocharovD won by resignation"]

1. c4 {[%clk 0:02:45.1]} 1... e5 {[%clk 0:02:46.5]} 2. d3 {[%clk 0:02:44.3]}
2... Nf6 {[%clk 0:02:45]} 3. Nf3 {[%clk 0:02:43.6]} 3... Nc6 {[%clk 0:02:45.1]}
4. a3 {[%clk 0:02:43]} 4... a5 {[%clk 0:02:40]} 5. Nc3 {[%clk 0:02:42.2]} 5...
Bc5 {[%clk 0:02:36.4]} 6. e3 {[%clk 0:02:34.9]} 6... O-O {[%clk 0:02:33.2]} 7.
Be2 {[%clk 0:02:34.7]} 7... d6 {[%clk 0:02:30.4]} 8. O-O {[%clk 0:02:33.6]} 8...
Re8 {[%clk 0:02:28.6]} 9. b3 {[%clk 0:02:33.3]} 9... Bf5 {[%clk 0:02:26.8]} 10.
Bb2 {[%clk 0:02:32.4]} 10... Bb6 {[%clk 0:02:21.6]} 11. Nd2 {[%clk 0:02:29.9]}
11... Bg6 {[%clk 0:02:19.1]} 12. Nde4 {[%clk 0:02:28.7]} 12... Nxe4 {[%clk
0:02:18.7]} 13. dxe4 {[%clk 0:02:28.7]} 13... Ne7 {[%clk 0:02:13.1]} 14. Bd3
{[%clk 0:02:18]} 14... Qd7 {[%clk 0:02:11.6]} 15. Kh1 {[%clk 0:02:17.6]} 15...
Nc6 {[%clk 0:02:01.8]} 16. Nd5 {[%clk 0:02:13.9]} 16... Bc5 {[%clk 0:02:01.8]}
17. Bc3 {[%clk 0:02:01.4]} 17... Ne7 {[%clk 0:02:01.6]} 18. Qd2 {[%clk
0:01:52.5]} 18... Nxd5 {[%clk 0:01:59.5]} 19. cxd5 {[%clk 0:01:49.4]} 19... Bb6
{[%clk 0:01:59.8]} 20. Rac1 {[%clk 0:01:43.7]} 20... f5 {[%clk 0:01:56.5]} 21.
exf5 {[%clk 0:01:21.9]} 21... Bxf5 {[%clk 0:01:57.4]} 22. e4 {[%clk 0:01:22.2]}
22... Bg6 {[%clk 0:01:56]} 23. a4 {[%clk 0:01:22.6]} 23... Qf7 {[%clk
0:01:51.7]} 24. f4 {[%clk 0:01:21.3]} 24... exf4 {[%clk 0:01:49.3]} 25. Rxf4
{[%clk 0:01:21.8]} 25... Qe7 {[%clk 0:01:46.5]} 26. Rcf1 {[%clk 0:01:18.4]}
26... Rf8 {[%clk 0:01:45.4]} 27. h3 {[%clk 0:01:17]} 27... Rxf4 {[%clk
0:01:44.6]} 28. Rxf4 {[%clk 0:01:17.1]} 28... Rf8 {[%clk 0:01:44.4]} 29. Rxf8+
{[%clk 0:01:12.3]} 29... Qxf8 {[%clk 0:01:45.3]} 30. Bxa5 {[%clk 0:01:10.3]}
30... Bxa5 {[%clk 0:01:39.9]} 31. Qxa5 {[%clk 0:01:10.2]} 31... b6 {[%clk
0:01:28.7]} 32. Qd2 {[%clk 0:01:04.3]} 32... Qe8 {[%clk 0:01:19.1]} 33. Qf4
{[%clk 0:01:01.7]} 33... Qa8 {[%clk 0:01:11.5]} 34. Bb5 {[%clk 0:00:53.4]} 34...
Qa5 {[%clk 0:01:07.8]} 35. Bd7 {[%clk 0:00:52]} 35... h6 {[%clk 0:00:56.4]} 36.
Be6+ {[%clk 0:00:43.5]} 36... Kh7 {[%clk 0:00:56.7]} 37. Qf8 {[%clk 0:00:35.7]}
37... Qe1+ {[%clk 0:00:46.9]} 38. Kh2 {[%clk 0:00:35.2]} 38... Bxe4 {[%clk
0:00:47.4]} 39. Bg8+ {[%clk 0:00:34.2]} 39... Kg6 {[%clk 0:00:47.5]} 40. Qf7+
{[%clk 0:00:34.2]} 40... Kg5 {[%clk 0:00:45.4]} 41. Qxg7+ {[%clk 0:00:34]} 41...
Kf4 {[%clk 0:00:43.8]} 42. Qxh6+ {[%clk 0:00:33.4]} 42... Ke5 {[%clk 0:00:43.5]}
43. Qg7+ {[%clk 0:00:33.4]} 43... Kf4 {[%clk 0:00:42.3]} 44. Qg4+ {[%clk
0:00:32.1]} 44... Ke3 {[%clk 0:00:40.8]} 45. Qg3+ {[%clk 0:00:32.3]} 45... Qxg3+
{[%clk 0:00:38.7]} 46. Kxg3 {[%clk 0:00:33.2]} 46... Bc2 {[%clk 0:00:38.8]} 47.
h4 {[%clk 0:00:32.6]} 47... Bxb3 {[%clk 0:00:38.8]} 48. h5 {[%clk 0:00:32.9]}
48... Bxa4 {[%clk 0:00:38.8]} 49. h6 {[%clk 0:00:32.9]} 49... Bc2 {[%clk
0:00:39.4]} 50. h7 {[%clk 0:00:33.2]} 50... Bxh7 {[%clk 0:00:39.4]} 51. Bxh7
{[%clk 0:00:33.7]} 51... Kd4 {[%clk 0:00:38.8]} 52. Kf4 {[%clk 0:00:34.1]} 52...
Kxd5 {[%clk 0:00:38.8]} 53. Kf5 {[%clk 0:00:32.3]} 53... b5 {[%clk 0:00:37.3]}
54. g4 {[%clk 0:00:32.3]} 54... b4 {[%clk 0:00:37.1]} 55. g5 {[%clk 0:00:32.1]}
55... b3 {[%clk 0:00:36.9]} 56. Bg8+ {[%clk 0:00:28.7]} 56... Kd4 {[%clk
0:00:36.2]} 57. Bxb3 {[%clk 0:00:29.1]} 1-0

[Event "*** Titled Tuesday Blitz"]
[Site "Chess.com"]
[Date "2020.10.20"]
[Round "1"]
[White "Love_craft"]
[Black "oneshot007"]
[Result "1-0"]
[WhiteElo "2630"]
[BlackElo "2300"]
[TimeControl "180+1"]
[EndTime "10:07:24 PDT"]
[Termination "Love_craft won on time"]

1. Nf3 {[%clk 0:02:58.6]} 1... c5 {[%clk 0:02:57.3]} 2. g3 {[%clk 0:02:59.5]}
2... g6 {[%clk 0:02:56.9]} 3. Bg2 {[%clk 0:02:59.7]} 3... Bg7 {[%clk 0:02:57.5]}
4. O-O {[%clk 0:03:00.6]} 4... Nf6 {[%clk 0:02:57.5]} 5. d3 {[%clk 0:03:01.1]}
5... O-O {[%clk 0:02:57.2]} 6. e4 {[%clk 0:03:01.1]} 6... d6 {[%clk 0:02:57.7]}
7. Nc3 {[%clk 0:03:00.8]} 7... Nc6 {[%clk 0:02:57.9]} 8. Be3 {[%clk 0:02:59.8]}
8... Rb8 {[%clk 0:02:52.3]} 9. Qd2 {[%clk 0:02:59.3]} 9... b5 {[%clk 0:02:47]}
10. Bh6 {[%clk 0:02:58.8]} 10... b4 {[%clk 0:02:46.3]} 11. Nd1 {[%clk
0:02:56.7]} 11... Bg4 {[%clk 0:02:29.9]} 12. Bxg7 {[%clk 0:02:55.4]} 12... Kxg7
{[%clk 0:02:29.7]} 13. Ne3 {[%clk 0:02:54.6]} 13... Bxf3 {[%clk 0:02:29.8]} 14.
Bxf3 {[%clk 0:02:55.5]} 14... Nd7 {[%clk 0:02:10.1]} 15. Bg2 {[%clk 0:02:54.1]}
15... e5 {[%clk 0:01:47.6]} 16. f4 {[%clk 0:02:51.2]} 16... exf4 {[%clk
0:01:47.3]} 17. gxf4 {[%clk 0:02:52.1]} 17... Nd4 {[%clk 0:01:40.8]} 18. c3
{[%clk 0:02:38]} 18... bxc3 {[%clk 0:01:39]} 19. bxc3 {[%clk 0:02:38.9]} 19...
Nc6 {[%clk 0:01:24.2]} 20. e5 {[%clk 0:02:31.2]} 20... Rc8 {[%clk 0:00:57.7]}
21. exd6 {[%clk 0:02:22.9]} 21... Nb6 {[%clk 0:00:56.1]} 22. f5 {[%clk
0:02:19.2]} 22... Qxd6 {[%clk 0:00:55.1]} 23. f6+ {[%clk 0:02:19.4]} 23... Kh8
{[%clk 0:00:55.1]} 24. Nc4 {[%clk 0:01:45.7]} 24... Nxc4 {[%clk 0:00:49.1]} 25.
Qh6 {[%clk 0:01:45.6]} 25... Rg8 {[%clk 0:00:46.1]} 26. dxc4 {[%clk 0:01:45.7]}
26... Ne5 {[%clk 0:00:45.8]} 27. Bd5 {[%clk 0:01:45.5]} 27... g5 {[%clk
0:00:32.4]} 28. Be4 {[%clk 0:01:30.3]} 28... Ng6 {[%clk 0:00:32.2]} 29. Rf3
{[%clk 0:01:18.1]} 29... Qe6 {[%clk 0:00:19.9]} 30. Re1 {[%clk 0:00:57.8]} 30...
Qg4+ {[%clk 0:00:19.8]} 31. Rg3 {[%clk 0:00:57.6]} 31... Qh4 {[%clk 0:00:20.3]}
32. Qxg5 {[%clk 0:00:35.3]} 32... Qxg5 {[%clk 0:00:18.6]} 33. Rxg5 {[%clk
0:00:36.2]} 33... Ne5 {[%clk 0:00:14.2]} 34. h4 {[%clk 0:00:35.3]} 34... Nxc4
{[%clk 0:00:12.8]} 35. Kf2 {[%clk 0:00:35.3]} 35... Rge8 {[%clk 0:00:09.5]} 36.
Rg7 {[%clk 0:00:29.9]} 36... Rxe4 {[%clk 0:00:04.6]} 37. Rxe4 {[%clk 0:00:30.8]}
37... Nd6 {[%clk 0:00:04.6]} 38. Re7 {[%clk 0:00:23.1]} 38... Rb8 {[%clk
0:00:01.3]} 39. Rxa7 {[%clk 0:00:20.8]} 39... Nf5 {[%clk 0:00:01.3]} 40. Rgxf7
{[%clk 0:00:19.6]} 1-0

[Event "*** Titled Tuesday Blitz"]
[Site "Chess.com"]
[Date "2020.10.20"]
[Round "1"]
[White "MatyChess1"]
[Black "poppy73"]
[Result "1-0"]
[WhiteElo "2548"]
[BlackElo "2221"]
[TimeControl "180+1"]
[EndTime "10:07:24 PDT"]
[Termination "MatyChess1 won by resignation"]

1. e4 {[%clk 0:02:59.4]} 1... c5 {[%clk 0:02:58.5]} 2. Nf3 {[%clk 0:02:58.8]}
2... d6 {[%clk 0:02:53.8]} 3. Nc3 {[%clk 0:02:58.2]} 3... Nf6 {[%clk 0:02:51.9]}
4. e5 {[%clk 0:02:57.8]} 4... dxe5 {[%clk 0:02:50.1]} 5. Nxe5 {[%clk 0:02:58.7]}
5... Nbd7 {[%clk 0:02:49.9]} 6. d4 {[%clk 0:02:57.6]} 6... Nxe5 {[%clk
0:02:45.4]} 7. dxe5 {[%clk 0:02:57.4]} 7... Qxd1+ {[%clk 0:02:45.4]} 8. Kxd1
{[%clk 0:02:58.1]} 8... Ng4 {[%clk 0:02:44.4]} 9. Bb5+ {[%clk 0:02:57]} 9... Bd7
{[%clk 0:02:41.1]} 10. e6 {[%clk 0:02:44.3]} 10... fxe6 {[%clk 0:02:01.9]} 11.
Ke2 {[%clk 0:02:37.6]} 11... g6 {[%clk 0:01:46.4]} 12. Bxd7+ {[%clk 0:02:27.3]}
12... Kxd7 {[%clk 0:01:47.3]} 13. Ne4 {[%clk 0:02:27.8]} 13... Kc6 {[%clk
0:01:43.4]} 14. Be3 {[%clk 0:02:22.3]} 14... Nxe3 {[%clk 0:01:39.1]} 15. Kxe3
{[%clk 0:02:20.8]} 15... Bh6+ {[%clk 0:01:38.5]} 16. Ke2 {[%clk 0:02:20.3]}
16... Rad8 {[%clk 0:01:34.1]} 17. Rhd1 {[%clk 0:02:14.3]} 17... Rd5 {[%clk
0:01:32.8]} 18. f3 {[%clk 0:01:56.4]} 18... Rhd8 {[%clk 0:01:31.1]} 19. Rd3
{[%clk 0:01:50.1]} 19... c4 {[%clk 0:01:24.4]} 20. Rdd1 {[%clk 0:01:41.4]} 20...
Bg7 {[%clk 0:01:15.6]} 21. c3 {[%clk 0:01:35.6]} 21... Rd3 {[%clk 0:01:08.7]}
22. Nf2 {[%clk 0:01:30.1]} 22... R3d5 {[%clk 0:01:05.5]} 23. Ng4 {[%clk
0:01:20.8]} 23... b5 {[%clk 0:00:50.7]} 24. a4 {[%clk 0:01:12]} 24... a6 {[%clk
0:00:38]} 25. axb5+ {[%clk 0:01:10.6]} 25... axb5 {[%clk 0:00:38.3]} 26. Nf2
{[%clk 0:00:48.5]} 26... Kb6 {[%clk 0:00:21.6]} 27. Ne4 {[%clk 0:00:34.8]} 27...
Bh6 {[%clk 0:00:21.6]} 28. h4 {[%clk 0:00:33.9]} 28... Rd3 {[%clk 0:00:21]} 29.
g4 {[%clk 0:00:30.1]} 29... Re3+ {[%clk 0:00:15.9]} 30. Kf2 {[%clk 0:00:30.2]}
30... Rdd3 {[%clk 0:00:13.7]} 31. Rxd3 {[%clk 0:00:26.9]} 31... Rxd3 {[%clk
0:00:08.9]} 32. Ke2 {[%clk 0:00:22.9]} 32... Re3+ {[%clk 0:00:08.1]} 33. Kf2
{[%clk 0:00:23.2]} 33... Rd3 {[%clk 0:00:08.4]} 34. g5 {[%clk 0:00:23.6]} 34...
Bg7 {[%clk 0:00:08.1]} 35. Ra8 {[%clk 0:00:22.3]} 35... b4 {[%clk 0:00:06.9]}
36. Rb8+ {[%clk 0:00:20.3]} 36... Kc7 {[%clk 0:00:06.1]} 37. Rxb4 {[%clk
0:00:21.2]} 37... Be5 {[%clk 0:00:04.6]} 38. Rxc4+ {[%clk 0:00:20.8]} 38... Kd7
{[%clk 0:00:04.9]} 39. Nc5+ {[%clk 0:00:20]} 1-0

[Event "*** Titled Tuesday Blitz"]
[Site "Chess.com"]
[Date "2020.10.20"]
[Round "1"]
[White "DariaVoit"]
[Black "MIJuanReyesRosa"]
[Result "1-0"]
[WhiteElo "2500"]
[BlackElo "2100"]
[TimeControl "180+1"]
[EndTime "10:07:25 PDT"]
[Termination "DariaVoit won on time"]

1. b3 {[%clk 0:02:56.9]} 1... d5 {[%clk 0:02:55.8]} 2. Bb2 {[%clk 0:02:57]} 2...
Nf6 {[%clk 0:02:56]} 3. g3 {[%clk 0:02:57.3]} 3... Bf5 {[%clk 0:02:56]} 4. Bg2
{[%clk 0:02:57.3]} 4... c6 {[%clk 0:02:56]} 5. Nf3 {[%clk 0:02:57.3]} 5... e6
{[%clk 0:02:56.2]} 6. O-O {[%clk 0:02:57.7]} 6... Be7 {[%clk 0:02:55.9]} 7. Ne5
{[%clk 0:02:57.7]} 7... O-O {[%clk 0:02:52.4]} 8. d3 {[%clk 0:02:57.5]} 8... h6
{[%clk 0:02:52.1]} 9. Nd2 {[%clk 0:02:56]} 9... Nbd7 {[%clk 0:02:50.5]} 10. e4
{[%clk 0:02:55.8]} 10... Bh7 {[%clk 0:02:49]} 11. Qe2 {[%clk 0:02:54.6]} 11...
Re8 {[%clk 0:02:42.4]} 12. f4 {[%clk 0:02:52.9]} 12... a5 {[%clk 0:02:36.6]} 13.
a4 {[%clk 0:02:49.6]} 13... Bf8 {[%clk 0:02:21.2]} 14. h3 {[%clk 0:02:47.7]}
14... Qb6+ {[%clk 0:01:58.9]} 15. Kh2 {[%clk 0:02:46.4]} 15... Qa6 {[%clk
0:01:58.1]} 16. Qf3 {[%clk 0:02:42.9]} 16... Rad8 {[%clk 0:01:50.6]} 17. Rad1
{[%clk 0:02:31.4]} 17... Bb4 {[%clk 0:01:33.3]} 18. exd5 {[%clk 0:02:17.2]}
18... exd5 {[%clk 0:01:28.1]} 19. g4 {[%clk 0:02:10.7]} 19... Bd6 {[%clk
0:01:00.4]} 20. Qg3 {[%clk 0:02:07.1]} 20... Qb6 {[%clk 0:00:46.5]} 21. Ndf3
{[%clk 0:02:04.9]} 21... Qc7 {[%clk 0:00:44.2]} 22. Rde1 {[%clk 0:02:03.4]}
22... Re7 {[%clk 0:00:34.3]} 23. Re2 {[%clk 0:01:54.9]} 23... Rde8 {[%clk
0:00:33.7]} 24. Rfe1 {[%clk 0:01:55.3]} 24... Ne4 {[%clk 0:00:12.7]} 25. dxe4
{[%clk 0:01:54]} 25... dxe4 {[%clk 0:00:12.7]} 26. Nd2 {[%clk 0:01:23.2]} 26...
f6 {[%clk 0:00:12.8]} 27. Bxe4 {[%clk 0:01:14.9]} 27... Bxe4 {[%clk 0:00:08.2]}
28. Nxe4 {[%clk 0:01:15.8]} 28... fxe5 {[%clk 0:00:07.7]} 29. Nxd6 {[%clk
0:01:16.3]} 29... exf4 {[%clk 0:00:07.7]} 30. Qd3 {[%clk 0:00:48.3]} 30... Rxe2+
{[%clk 0:00:06.9]} 31. Rxe2 {[%clk 0:00:44.6]} 31... Rxe2+ {[%clk 0:00:06.6]}
32. Qxe2 {[%clk 0:00:44.8]} 32... Qxd6 {[%clk 0:00:05.6]} 33. Qe8+ {[%clk
0:00:43]} 33... Kh7 {[%clk 0:00:04.8]} 34. Qe4+ {[%clk 0:00:43.6]} 34... Kg8
{[%clk 0:00:04]} 35. Bd4 {[%clk 0:00:42.2]} 35... f3+ {[%clk 0:00:03]} 36. Kh1
{[%clk 0:00:39]} 36... Nf6 {[%clk 0:00:03]} 37. Bxf6 {[%clk 0:00:28.2]} 37...
Qd1+ {[%clk 0:00:02.9]} 38. Kh2 {[%clk 0:00:26.6]} 38... Qd2+ {[%clk 0:00:02.6]}
39. Kg3 {[%clk 0:00:26.8]} 39... Qg2+ {[%clk 0:00:02.2]} 40. Kf4 {[%clk
0:00:27.5]} 40... f2 {[%clk 0:00:01.9]} 41. Qe6+ {[%clk 0:00:21.7]} 1-0

[Event "*** Titled Tuesday Blitz"]
[Site "Chess.com"]
[Date "2020.10.20"]
[Round "1"]
[White "Tooweak2slow03"]
[Black "tteshan"]
[Result "1-0"]
[WhiteElo "2772"]
[BlackElo "2381"]
[TimeControl "180+1"]
[EndTime "10:07:29 PDT"]
[Termination "Tooweak2slow03 won by checkmate"]

1. e4 {[%clk 0:03:00.9]} 1... c5 {[%clk 0:02:59.3]} 2. Nf3 {[%clk 0:03:00.3]}
2... Nc6 {[%clk 0:02:58.2]} 3. Bb5 {[%clk 0:02:59.9]} 3... e6 {[%clk 0:02:57.9]}
4. O-O {[%clk 0:02:59.3]} 4... Nge7 {[%clk 0:02:57.2]} 5. d4 {[%clk 0:02:59.8]}
5... a6 {[%clk 0:02:54.4]} 6. Be2 {[%clk 0:02:55.4]} 6... cxd4 {[%clk
0:02:53.3]} 7. Nxd4 {[%clk 0:02:56.3]} 7... Nxd4 {[%clk 0:02:51.2]} 8. Qxd4
{[%clk 0:02:55.9]} 8... Nc6 {[%clk 0:02:51.5]} 9. Qc3 {[%clk 0:02:56.4]} 9... f6
{[%clk 0:02:46.6]} 10. Nd2 {[%clk 0:02:48.7]} 10... Bb4 {[%clk 0:02:44.1]} 11.
Qg3 {[%clk 0:02:48]} 11... O-O {[%clk 0:02:42.7]} 12. c3 {[%clk 0:02:44.3]}
12... Bc5 {[%clk 0:02:41.8]} 13. Nc4 {[%clk 0:02:41.1]} 13... b5 {[%clk
0:02:35.8]} 14. Be3 {[%clk 0:02:09.5]} 14... Bxe3 {[%clk 0:02:27.8]} 15. Nxe3
{[%clk 0:02:09.2]} 15... Bb7 {[%clk 0:02:26.2]} 16. Rad1 {[%clk 0:02:08.3]}
16... Ne5 {[%clk 0:02:00.7]} 17. f4 {[%clk 0:02:05.9]} 17... Nf7 {[%clk
0:01:59.2]} 18. Bf3 {[%clk 0:02:04]} 18... Qb6 {[%clk 0:01:56.5]} 19. Qf2 {[%clk
0:02:02.1]} 19... Rfd8 {[%clk 0:01:51.5]} 20. Kh1 {[%clk 0:02:01.5]} 20... Rac8
{[%clk 0:01:45.7]} 21. Rd2 {[%clk 0:01:59.4]} 21... b4 {[%clk 0:01:20.7]} 22. c4
{[%clk 0:01:53.4]} 22... a5 {[%clk 0:01:13.3]} 23. b3 {[%clk 0:01:53.6]} 23...
a4 {[%clk 0:01:08.2]} 24. Rfd1 {[%clk 0:01:53.9]} 24... axb3 {[%clk 0:01:07.6]}
25. axb3 {[%clk 0:01:54.8]} 25... Bc6 {[%clk 0:01:08.1]} 26. Rd3 {[%clk
0:01:49.8]} 26... Ra8 {[%clk 0:01:07.5]} 27. Qg3 {[%clk 0:01:49]} 27... Ra3
{[%clk 0:01:01.8]} 28. Ng4 {[%clk 0:01:48]} 28... Kh8 {[%clk 0:01:00.8]} 29. e5
{[%clk 0:01:48.1]} 29... f5 {[%clk 0:00:49.1]} 30. Ne3 {[%clk 0:01:39.9]} 30...
Be4 {[%clk 0:00:25.7]} 31. Rd4 {[%clk 0:00:50.9]} 31... d5 {[%clk 0:00:18.3]}
32. cxd5 {[%clk 0:00:49.1]} 32... Rxb3 {[%clk 0:00:16.8]} 33. dxe6 {[%clk
0:00:47.5]} 33... Rxd4 {[%clk 0:00:16.7]} 34. exf7 {[%clk 0:00:45.1]} 34... Rd8
{[%clk 0:00:09.8]} 35. Rxd8+ {[%clk 0:00:40.2]} 35... Qxd8 {[%clk 0:00:10.7]}
36. Bxe4 {[%clk 0:00:41]} 36... fxe4 {[%clk 0:00:10.4]} 37. h4 {[%clk
0:00:39.7]} 37... Rb1+ {[%clk 0:00:10.2]} 38. Kh2 {[%clk 0:00:39.7]} 38... Qe7
{[%clk 0:00:10.1]} 39. e6 {[%clk 0:00:38.8]} 39... b3 {[%clk 0:00:08.1]} 40. Nd5
{[%clk 0:00:37.9]} 40... Qf8 {[%clk 0:00:07.6]} 41. f5 {[%clk 0:00:32.2]} 41...
b2 {[%clk 0:00:07.3]} 42. Qb3 {[%clk 0:00:29.8]} 42... Qd6+ {[%clk 0:00:05.4]}
43. g3 {[%clk 0:00:29.1]} 43... Rf1 {[%clk 0:00:05]} 44. e7 {[%clk 0:00:26.4]}
44... Rf2+ {[%clk 0:00:04.6]} 45. Kh3 {[%clk 0:00:25.9]} 45... Qf6 {[%clk
0:00:04.4]} 46. f8=Q+ {[%clk 0:00:24.8]} 46... Qxf8 {[%clk 0:00:04.3]} 47.
exf8=Q# {[%clk 0:00:25.7]} 1-0

[Event "*** Titled Tuesday Blitz"]
[Site "Chess.com"]
[Date "2020.10.20"]
[Round "1"]
[White "ShapkinAnatoliy"]
[Black "JoachimMouhamad"]
[Result "1-0"]
[WhiteElo "2649"]
[BlackElo "2311"]
[TimeControl "180+1"]
[EndTime "10:07:29 PDT"]
[Termination "ShapkinAnatoliy won by resignation"]

1. d4 {[%clk 0:02:59.1]} 1... Nf6 {[%clk 0:02:46.4]} 2. c4 {[%clk 0:02:59.4]}
2... g6 {[%clk 0:02:46.5]} 3. Nc3 {[%clk 0:02:59.6]} 3... d5 {[%clk 0:02:39.6]}
4. Nf3 {[%clk 0:03:00.5]} 4... Bg7 {[%clk 0:02:37.9]} 5. cxd5 {[%clk 0:03:00.7]}
5... Nxd5 {[%clk 0:02:37.9]} 6. e4 {[%clk 0:03:01.6]} 6... Nxc3 {[%clk
0:02:38.1]} 7. bxc3 {[%clk 0:03:01.9]} 7... O-O {[%clk 0:02:39]} 8. Be3 {[%clk
0:03:01.7]} 8... c5 {[%clk 0:02:38.1]} 9. Be2 {[%clk 0:03:02.1]} 9... Qa5 {[%clk
0:02:35.7]} 10. O-O {[%clk 0:03:01.4]} 10... Rd8 {[%clk 0:02:27.4]} 11. Qb3
{[%clk 0:03:00.7]} 11... cxd4 {[%clk 0:02:09.6]} 12. cxd4 {[%clk 0:02:59.7]}
12... Nc6 {[%clk 0:02:02.8]} 13. Rad1 {[%clk 0:02:54.3]} 13... Qb4 {[%clk
0:01:56.2]} 14. d5 {[%clk 0:02:31]} 14... Qxb3 {[%clk 0:01:53.3]} 15. axb3
{[%clk 0:02:31.9]} 15... Ne5 {[%clk 0:01:46.3]} 16. Nd4 {[%clk 0:02:16.7]} 16...
Ng4 {[%clk 0:01:31.9]} 17. Bg5 {[%clk 0:02:06]} 17... Nf6 {[%clk 0:01:27.7]} 18.
f3 {[%clk 0:02:05.7]} 18... Bd7 {[%clk 0:01:25.6]} 19. Be3 {[%clk 0:01:55.7]}
19... Rac8 {[%clk 0:01:19.8]} 20. Rc1 {[%clk 0:01:54.8]} 20... e6 {[%clk
0:01:12.1]} 21. dxe6 {[%clk 0:01:50.8]} 21... fxe6 {[%clk 0:01:12.2]} 22. Bc4
{[%clk 0:01:40.7]} 22... Kf7 {[%clk 0:01:10.1]} 23. Rfd1 {[%clk 0:01:40.2]}
23... Ke7 {[%clk 0:01:02.6]} 24. e5 {[%clk 0:01:23.8]} 24... Nh5 {[%clk
0:00:50.7]} 25. Bg5+ {[%clk 0:01:23.1]} 25... Ke8 {[%clk 0:00:46.9]} 26. Bxd8
{[%clk 0:01:19.3]} 26... Rxd8 {[%clk 0:00:47.3]} 27. Nxe6 {[%clk 0:01:10.1]}
27... Bxe6 {[%clk 0:00:47.3]} 28. Bxe6 {[%clk 0:01:08.5]} 28... Bxe5 {[%clk
0:00:38.3]} 29. Rxd8+ {[%clk 0:01:04.3]} 29... Kxd8 {[%clk 0:00:38.2]} 30. g3
{[%clk 0:01:05.1]} 30... Ng7 {[%clk 0:00:28.9]} 31. Bd5 {[%clk 0:01:04.4]} 31...
b6 {[%clk 0:00:24]} 32. Kf2 {[%clk 0:01:01.7]} 32... Ne8 {[%clk 0:00:22.9]} 33.
Ke3 {[%clk 0:00:59.8]} 33... Ke7 {[%clk 0:00:18.8]} 34. f4 {[%clk 0:00:59.1]}
34... Bd6 {[%clk 0:00:17.7]} 35. Rc8 {[%clk 0:00:49.5]} 35... Nc7 {[%clk
0:00:16.7]} 36. Be4 {[%clk 0:00:46.5]} 36... Bc5+ {[%clk 0:00:15.6]} 37. Kd3
{[%clk 0:00:44.4]} 37... Ne6 {[%clk 0:00:15.5]} 38. Ra8 {[%clk 0:00:41.4]} 38...
a5 {[%clk 0:00:15.4]} 39. Ra7+ {[%clk 0:00:40]} 39... Kf6 {[%clk 0:00:12.1]} 40.
Rxh7 {[%clk 0:00:40.9]} 40... Nd4 {[%clk 0:00:12]} 41. Rh6 {[%clk 0:00:35.9]}
41... Nxb3 {[%clk 0:00:12]} 42. Rxg6+ {[%clk 0:00:35.7]} 42... Ke7 {[%clk
0:00:12.4]} 43. h4 {[%clk 0:00:35.9]} 43... a4 {[%clk 0:00:12.3]} 44. Bd5 {[%clk
0:00:30.9]} 44... Nc1+ {[%clk 0:00:11.8]} 45. Kd2 {[%clk 0:00:28.8]} 45... Nb3+
{[%clk 0:00:05.4]} 46. Bxb3 {[%clk 0:00:28.9]} 46... axb3 {[%clk 0:00:06.3]} 47.
Kc3 {[%clk 0:00:29.3]} 1-0

[Event "*** Titled Tuesday Blitz"]
[Site "Chess.com"]
[Date "2020.10.20"]
[Round "1"]
[White "night_player"]
[Black "PhileKhoob"]
[Result "0-1"]
[WhiteElo "2212"]
[BlackElo "2542"]
[TimeControl "180+1"]
[EndTime "10:07:30 PDT"]
[Termination "PhileKhoob won by checkmate"]

1. e4 {[%clk 0:03:00.9]} 1... c5 {[%clk 0:02:59.8]} 2. c3 {[%clk 0:03:00.9]}
2... d5 {[%clk 0:02:59.4]} 3. exd5 {[%clk 0:03:01.3]} 3... Qxd5 {[%clk
0:02:59.5]} 4. d4 {[%clk 0:03:01.8]} 4... Nf6 {[%clk 0:02:57.3]} 5. Nf3 {[%clk
0:03:02.1]} 5... Nc6 {[%clk 0:02:56.4]} 6. Be3 {[%clk 0:03:01.8]} 6... Bg4
{[%clk 0:02:56.4]} 7. Be2 {[%clk 0:03:01.3]} 7... cxd4 {[%clk 0:02:57]} 8. cxd4
{[%clk 0:03:01.3]} 8... e6 {[%clk 0:02:57.2]} 9. O-O {[%clk 0:03:01.2]} 9... Be7
{[%clk 0:02:55.1]} 10. Nc3 {[%clk 0:03:01.7]} 10... Qd6 {[%clk 0:02:53.6]} 11.
a3 {[%clk 0:02:58.3]} 11... O-O {[%clk 0:02:51.9]} 12. h3 {[%clk 0:02:57.1]}
12... Bh5 {[%clk 0:02:51.7]} 13. Qb3 {[%clk 0:02:55.5]} 13... b6 {[%clk
0:02:44]} 14. Rad1 {[%clk 0:02:46.5]} 14... Rfd8 {[%clk 0:02:37]} 15. Nb5 {[%clk
0:01:58.5]} 15... Qd7 {[%clk 0:02:33.8]} 16. g4 {[%clk 0:01:53.9]} 16... Bg6
{[%clk 0:02:33.4]} 17. Ne5 {[%clk 0:01:53.4]} 17... Nxe5 {[%clk 0:02:26.7]} 18.
dxe5 {[%clk 0:01:54.3]} 18... Nd5 {[%clk 0:02:27.2]} 19. Bf3 {[%clk 0:01:44.7]}
19... Rac8 {[%clk 0:02:11.7]} 20. Nc3 {[%clk 0:01:40.7]} 20... Qc7 {[%clk
0:02:03.4]} 21. Nxd5 {[%clk 0:01:36]} 21... exd5 {[%clk 0:02:03.5]} 22. Rxd5
{[%clk 0:01:31.1]} 22... Rxd5 {[%clk 0:02:02.9]} 23. Qxd5 {[%clk 0:01:32]} 23...
Rd8 {[%clk 0:02:03.2]} 24. Qb7 {[%clk 0:01:13.4]} 24... Qxe5 {[%clk 0:01:58.5]}
25. Qxa7 {[%clk 0:01:10.2]} 25... Bd6 {[%clk 0:01:56.6]} 26. Rd1 {[%clk
0:00:52.3]} 26... Qh2+ {[%clk 0:01:46.6]} 27. Kf1 {[%clk 0:00:52.1]} 27... h5
{[%clk 0:01:28.8]} 28. Ke2 {[%clk 0:00:39.5]} 28... h4 {[%clk 0:01:05.9]} 29.
Qxb6 {[%clk 0:00:38]} 29... Rd7 {[%clk 0:01:02.9]} 30. Bc5 {[%clk 0:00:20.8]}
30... Qe5+ {[%clk 0:00:31]} 31. Be3 {[%clk 0:00:20.2]} 31... Kh7 {[%clk
0:00:20.3]} 32. Qd4 {[%clk 0:00:20.5]} 32... Qh2 {[%clk 0:00:15.7]} 33. Bc6
{[%clk 0:00:17.3]} 33... Rd8 {[%clk 0:00:14.8]} 34. Qb6 {[%clk 0:00:17.1]} 34...
Rb8 {[%clk 0:00:08.8]} 35. Qd4 {[%clk 0:00:16]} 35... Be5 {[%clk 0:00:08.9]} 36.
Qc5 {[%clk 0:00:12.2]} 36... Rxb2+ {[%clk 0:00:09.2]} 37. Rd2 {[%clk 0:00:13.1]}
37... Rb1 {[%clk 0:00:08.4]} 38. Bf3 {[%clk 0:00:09.1]} 38... Qxh3 {[%clk
0:00:08.3]} 39. Qxe5 {[%clk 0:00:07.9]} 39... Qf1# {[%clk 0:00:08.5]} 0-1